fUSD/lending_fUSD_20250420
["ID","MTS","AMOUNT","RATE_DAILY","PERIOD"]
[358466455,1745182244542,-150.0,0.00059499,120]
[358466457,1745182244551,-150.0,0.00059499,120]
[358466459,1745182244560,-150.0,0.00059499,120]
[358466461,1745182244569,-150.0,0.00059499,120]
[358466463,1745182244578,-150.0,0.00059499,120]
[358466465,1745182244586,-150.0,0.00059499,120]
[358466467,1745182244595,-150.0,0.00059499,120]
[358466469,1745182244604,-150.0,0.00059499,120]
[358466471,1745182244613,-150.0,0.00059499,120]
[358466473,1745182244622,-150.0,0.00059499,120]
[358466475,1745182244630,-150.0,0.00059499,120]
[358466477,1745182244639,-234.61359466,0.00059499,120]
[358466479,1745182244648,-250019.80354047,0.000595,120]
[358466490,1745182244749,-92.01088576,0.000595,120]
[358466703,1745182535595,450.0,0.00017,2]
[358466706,1745182688409,792.9182,7.945e-05,2]
[358466708,1745183225123,-406.36603164,0.0004766,2]
[358466710,1745183345146,-300.0,0.00043375,5]
[358466711,1745183345169,-4228.357638,0.00043376,2]
[358466712,1745183368079,-14189.87485981,0.00043376,2]
[358466719,1745183432299,-5543.55029006,0.00043376,2]
[358466720,1745183432310,-426.99261681,0.000478,2]
[358466721,1745183432319,-204.80064338,0.000479,20]
[358466722,1745183432328,-300.0,0.00047999,5]
[358466723,1745183432338,-159.06208761,0.00048,2]
[358466724,1745183432347,-500.0,0.00048,2]
[358466725,1745183432356,-500.0,0.00048,2]
[358466726,1745183432365,-500.0,0.00048,2]
[358466727,1745183432374,-152.46,0.000481,45]
[358466728,1745183432383,-152.46,0.000481,45]
[358466729,1745183432392,-175.0,0.0005,120]
[358466730,1745183432402,-804.743486,0.00050535,5]
[358466731,1745183432411,-1412.0,0.000507,120]
[358466732,1745183432420,-204.80064331,0.00050789,22]
[358466733,1745183432429,-250.0,0.00052426,2]
[358466734,1745183432438,-250.0,0.00052536,2]
[358466735,1745183432447,-152.46,0.000536,54]
[358466736,1745183432456,-152.46,0.000536,54]
[358466737,1745183432465,-152.46,0.000536,54]
[358466738,1745183432474,-152.46,0.000536,54]
[358466739,1745183432483,-2291.41147564,0.00053646,5]
[358466740,1745183432492,-204.80064331,0.00053678,24]
[358466741,1745183432501,-2000.0,0.000548,2]
[358466742,1745183432511,-351.24631814,0.00055,6]
[358466743,1745183432519,-1000.41,0.00055203,2]
[358466744,1745183432529,-500.0,0.00055233,2]
[358466745,1745183432538,-204.80064331,0.00056567,26]
[358466746,1745183432547,-742.839,0.00056661,109]
[358466747,1745183432555,-155.73,0.00056877,120]
[358466748,1745183432564,-237.12,0.00057244,120]
[358466749,1745183432573,-1000.41,0.00057467,2]
[358466750,1745183432583,-153.82,0.00057474,2]
[358466751,1745183432592,-1013.59428623,0.00057476,12]
[358466752,1745183432601,-21471.95,0.00057477,2]
[358466753,1745183432610,-505.66,0.00057682,120]
[358466754,1745183432619,-150.0,0.00057704,7]
[358466755,1745183432628,-522.45803562,0.0005772,120]
[358466757,1745183432637,-408.68,0.00057738,2]
[358466759,1745183432646,-345.80317191,0.000578,30]
[358466761,1745183432655,-773.09300022,0.00057939,2]
[358466763,1745183432665,-943.64,0.00057949,30]
[358466765,1745183432674,-1000.0,0.00058111,120]
[358466767,1745183432683,-155.88,0.00058172,2]
[358466769,1745183432692,-250.0,0.00058187,120]
[358466771,1745183432701,-305.84,0.00058419,2]
[358466773,1745183432710,-200.0,0.00058419,30]
[358466775,1745183432719,-1000.0,0.00058586,2]
[358466777,1745183432729,-162.92,0.00058697,120]
[358466778,1745183432738,-255.147,0.000589,2]
[358466780,1745183432747,-279.47432113,0.00059108,2]
[358466782,1745183432756,-9340.1651,0.0005918,2]
[358466784,1745183432766,-152.46,0.000592,60]
[358466786,1745183432776,-152.46,0.000592,60]
[358466788,1745183432788,-152.46,0.000592,60]
[358466790,1745183432797,-152.46,0.000592,60]
[358466791,1745183432807,-523.2911525,0.00059295,15]
[358466793,1745183432815,-203.1263,0.000593,2]
[358466795,1745183432824,-583.2942,0.000593,2]
[358466797,1745183432833,-2450.9755,0.000593,2]
[358466799,1745183432842,-523.29115248,0.00059307,15]
[358466801,1745183432851,-523.29115248,0.00059318,15]
[358466803,1745183432860,-523.29115248,0.0005933,15]
[358466805,1745183432869,-523.29115248,0.00059342,15]
[358466807,1745183432878,-523.29115248,0.00059353,15]
[358466809,1745183432887,-523.29115248,0.00059365,15]
[358466811,1745183432896,-523.29115248,0.00059377,15]
[358466813,1745183432907,-1000.0,0.0005938,2]
[358466815,1745183432915,-523.29115248,0.00059388,15]
[358466817,1745183432924,-725.2746676,0.0005939,31]
[358466837,1745183433104,-4642.69585091,0.0005939,15]
[358466839,1745183433113,-976.61659309,0.0005939,9]
[358466841,1745183433123,-15254.6737,0.0005939,2]
[358466843,1745183433132,-202.1703,0.0005939,2]
[358466845,1745183433141,-36134.2821,0.0005939,2]
[358466847,1745183433150,-4642.69585082,0.00059391,15]
[358466849,1745183433160,-4642.69585082,0.00059392,15]
[358466851,1745183433169,-4642.69585082,0.00059393,15]
[358466853,1745183433178,-4642.69585082,0.00059394,15]
[358466855,1745183433188,-4642.69585082,0.00059396,15]
[358466857,1745183433197,-4642.69585082,0.00059397,15]
[358466859,1745183433207,-4642.69585082,0.00059398,15]
[358466861,1745183433216,-4642.69585082,0.00059399,15]
[358466863,1745183433225,-976.61659309,0.000594,9]
[358466865,1745183433235,-158.55088509,0.000594,38]
[358466867,1745183433244,-523.29115248,0.000594,15]
[358466869,1745183433253,-1199.63040274,0.000594,41]
[358466871,1745183433263,-4642.69585082,0.000594,15]
[358466873,1745183433272,-193.97871378,0.000594,2]
[358466875,1745183433281,-20015.64244912,0.000594,2]
[358466877,1745183433290,-204.80064331,0.00059456,28]
[358466879,1745183433300,-165.44450441,0.00059473,7]
[358466881,1745183433310,-320.73729861,0.00059473,15]
[358466883,1745183433319,-500.0,0.00059473,15]
[358466885,1745183433328,-500.0,0.00059473,2]
[358466887,1745183433337,-500.0,0.00059473,15]
[358466889,1745183433347,-504.05263074,0.00059473,15]
[358466891,1745183433357,-498.26301178,0.00059473,15]
[358466893,1745183433366,-500.0,0.00059473,15]
[358466894,1745183433375,-233.45,0.00059479,30]
[358466895,1745183433383,-500.0,0.0005948,30]
[358466896,1745183433392,-152.48,0.0005948,120]
[358466897,1745183433401,-233.45,0.0005948,30]
[358466898,1745183433410,-233.45,0.0005948,30]
[358466899,1745183433420,-233.45,0.0005948,30]
[358466900,1745183433429,-233.45,0.0005948,30]
[358466901,1745183433439,-233.45,0.0005948,30]
[358466902,1745183433449,-233.45,0.0005948,30]
[358466903,1745183433457,-233.45,0.0005948,30]
[358466904,1745183433468,-233.45,0.0005948,30]
[358466905,1745183433476,-233.45,0.0005948,30]
[358466906,1745183433485,-361.23417966,0.00059489,120]
[358466907,1745183433494,-164.71443901,0.00059489,120]
[358466909,1745183433503,-214.57589116,0.00059489,120]
[358466910,1745183433512,-500.0,0.00059489,120]
[358466912,1745183433521,-177.74901853,0.00059489,120]
[358466914,1745183433530,-222.85952857,0.00059489,120]
[358466916,1745183433539,-573.88884671,0.00059489,120]
[358466918,1745183433548,-500.0,0.00059489,120]
[358466920,1745183433557,-500.0,0.00059489,120]
[358466922,1745183433566,-500.0,0.00059489,120]
[358466924,1745183433575,-500.0,0.00059489,120]
[358466926,1745183433584,-500.0,0.00059489,120]
[358466928,1745183433593,-500.0,0.00059489,120]
[358466930,1745183433602,-450.0,0.00059489,120]
[358466932,1745183433611,-184.83793518,0.00059489,120]
[358466934,1745183433621,-500.0,0.00059489,60]
[358466936,1745183433631,-14602.5329689,0.0005949,4]
[358466938,1745183433640,-321255.725316,0.0005949,4]
[358466940,1745183433649,-41504.61032295,0.0005949,5]
[358466942,1745183433661,-848.83,0.0005949,5]
[358466945,1745183433674,-452.95011032,0.0005949,5]
[358466948,1745183433693,-86263.54291947,0.0005949,5]
[358466950,1745183433704,-26593.70167726,0.0005949,5]
[358466952,1745183433713,-215.47903699,0.0005949,7]
[358466954,1745183433722,-215.47903699,0.0005949,7]
[358466956,1745183433731,-215.47903699,0.0005949,7]
[358466958,1745183433740,-152.48,0.0005949,120]
[358466960,1745183433749,-152.48,0.0005949,120]
[358466962,1745183433758,-152.48,0.0005949,120]
[358466964,1745183433767,-152.48,0.0005949,120]
[358466966,1745183433777,-152.48,0.0005949,120]
[358466968,1745183433789,-152.48,0.0005949,120]
[358466970,1745183433808,-152.48,0.0005949,120]
[358466972,1745183433820,-500.0,0.00059499,60]
[358466974,1745183433830,-1000.0,0.00059499,120]
[358466977,1745183433840,-305.29465451,0.00059499,30]
[358466979,1745183433849,-500.0,0.00059499,60]
[358466981,1745183433862,-999.0,0.00059499,120]
[358466982,1745183433872,-500.0,0.00059499,60]
[358466984,1745183433882,-150.0,0.00059499,120]
[358466986,1745183433891,-150.0,0.00059499,120]
[358466988,1745183433900,-150.0,0.00059499,120]
[358466991,1745183433911,-150.0,0.00059499,120]
[358466993,1745183433921,-150.0,0.00059499,120]
[358466995,1745183433930,-150.0,0.00059499,120]
[358466997,1745183433940,-150.0,0.00059499,120]
[358466999,1745183433950,-150.0,0.00059499,120]
[358467001,1745183433959,-150.0,0.00059499,120]
[358467003,1745183433968,-150.0,0.00059499,120]
[358467005,1745183433978,-150.0,0.00059499,120]
[358467006,1745183433987,-103427.07682745,0.000595,2]
[358467009,1745183433996,-56349.87418893,0.000595,120]
[358467011,1745183434010,-2891.6764344,0.000595,120]
[358467013,1745183434021,-377.70887099,0.000595,120]
[358467015,1745183434032,-5026.918,0.000595,120]
[358467437,1745183438627,-496.32427049,0.000595,120]
[358467438,1745183438639,-515.85304197,0.000595,120]
[358467439,1745183438687,-631.29857296,0.000595,120]
[358467440,1745183438763,-1436.58400605,0.000595,120]
[358467441,1745183438774,-2274.57369859,0.000595,120]
[358467442,1745183438788,-2472.47165091,0.000595,120]
[358467443,1745183438804,-349612.93417301,0.000595,120]
[358467444,1745183438814,-7549.38682885,0.000595,120]
[358467445,1745183438826,-8215.0465128,0.000595,120]
[358467469,1745183440581,-316.49767785,0.00059389,2]
[358467482,1745183440692,-683.50232215,0.00059389,2]
[358467484,1745183440702,-3526808.90970274,0.000595,120]
[358467486,1745183440714,-87036.44377286,0.000595,120]
[358467488,1745183440725,-8597.34099815,0.000595,120]
[358467490,1745183440737,-85349.98713881,0.000595,120]
[358467514,1745183441013,-901.29876485,0.000595,120]
[358467720,1745183443589,-1013.88298009,0.00058308,2]
[358468031,1745183446626,-932.8,0.00058308,2]
[358468034,1745183446637,-1105.48321359,0.00058308,2]
[358468036,1745183446646,-846.92405042,0.000594,2]
[358468038,1745183446655,-168.86703099,0.000594,2]
[358468041,1745183446679,-2953.38045321,0.000594,2]
[358469593,1745184308306,437648.75325067,0.0002,2]
[358469594,1745184337248,409.92443273,9e-05,2]
[358469595,1745184337794,450.0,0.00017,2]
[358469596,1745184338892,500.0,0.00019,2]
[358469599,1745184440128,-164.04843549,0.00019701,2]
[358469600,1745184466170,204.80064331,0.000279,7]
[358469601,1745184532818,357.0610132,0.00013368,2]
[358469602,1745184532847,1722.05266474,0.00013368,2]
[358469603,1745184532876,1498.2142071,0.00013368,2]
[358469604,1745184532904,1286.31833571,0.00013368,2]
[358469605,1745184532935,231.17833099,0.00013368,2]
[358469606,1745184532963,1426.25589385,0.00013368,2]
[358469607,1745184532991,1852.03353016,0.00013368,2]
[358469608,1745184533033,3600.0,0.00013368,2]
[358469609,1745184533056,10000.0,0.00013368,2]
[358469610,1745184533077,1248.69624405,0.00013368,2]
[358469611,1745184563091,-188.918831,0.00019701,2]
[358469612,1745184563112,-171.20058739,0.000198,2]
[358469613,1745184563134,-532.32521546,0.00019872,2]
[358469614,1745184563153,-270.98943377,0.00019873,2]
[358469615,1745184563174,-300.0,0.00019899,2]
[358469616,1745184563196,-2600.43518771,0.000199,2]
[358469617,1745184563218,-13343.76163274,0.000199,2]
[358469618,1745184563239,-564.61603362,0.000199,2]
[358469619,1745184563262,-3374.67167262,0.000199,2]
[358469620,1745184563283,-3121.72728569,0.00019973,2]
[358469621,1745184567285,208.57,0.00016712,2]
[358469634,1745184626152,204.80064331,0.000279,7]
[358469640,1745184631459,-193.97871378,0.000199,2]
[358469641,1745184631472,-158.2225,0.000199,2]
[358469642,1745184631483,-197.67861547,0.000199,2]
[358469643,1745184631496,-1.11376169,0.000199,2]
[358469644,1745184631506,-196.34138022,0.0001995,2]
[358469645,1745184631516,-194.0,0.00019972,2]
[358469646,1745184631526,-300.0,0.00019972,2]
[358469647,1745184631535,-216.27271431,0.00019973,2]
[358469648,1745184631544,-406.79553716,0.00019973,2]
[358469649,1745184631554,-500.0,0.00019973,2]
[358469650,1745184631563,-500.0,0.00019973,2]
[358469651,1745184631573,-500.0,0.00019973,2]
[358469652,1745184631582,-172.01270154,0.0001999,2]
[358469653,1745184631591,-8306.78302677,0.0001999,2]
[358469654,1745184631600,-150.99,0.0001999,2]
[358469655,1745184631609,-500.0,0.00019999,2]
[358469656,1745184631619,-522.69,0.00019999,2]
[358469657,1745184631628,-156.00167,0.00019999,2]
[358469658,1745184631638,-1563.77820952,0.0002,2]
[358469659,1745184631650,-491.06720059,0.0002,2]
[358469660,1745184631661,-2394.84173808,0.0002,2]
[358469661,1745184631673,-1736.59403216,0.0002,2]
[358469662,1745184631684,-13679.8510015,0.0002,2]
[358469663,1745184631699,-116962.17067473,0.0002,2]
[358469664,1745184631710,-359.56063052,0.0002,2]
[358469665,1745184631745,-506.57,0.0002,2]
[358469666,1745184631756,-386.88397494,0.0002,2]
[358469667,1745184631767,-3636.77596321,0.0002,2]
[358469871,1745184637640,-848.35,0.0002,2]
[358469872,1745184637750,-710.47415323,0.0002,2]
[358469873,1745184637809,-360.91580099,0.0002,2]
[358469874,1745184637869,-792.00000002,0.0002,2]
[358469877,1745184638009,-420459.00937248,0.0002,2]
[358469878,1745184638020,-2046.49039039,0.0002,2]
[358469920,1745184639768,-4097.62941666,0.0002,2]
[358469921,1745184639883,-21619.33835836,0.0002,2]
[358469922,1745184639895,-45996.10689029,0.0002,2]
[358469923,1745184639942,-1310.29847379,0.0002,2]
[358469924,1745184640004,-2353.17818141,0.0002,2]
[358469925,1745184640016,-2239.99555988,0.0002,2]
[358469926,1745184640028,-333.81892786,0.0002,2]
[358469927,1745184640043,-5032.3753381,0.0002,2]
[358469928,1745184640059,-3353.28901211,0.0002,2]
[358469929,1745184640075,-1487.09791683,0.0002,2]
[358469930,1745184640089,-720.70593019,0.0002,2]
[358469931,1745184640101,-689.46784177,0.0002,2]
[358469932,1745184640115,-1225.35595842,0.0002,2]
[358469933,1745184640129,-550.7481171,0.0002,2]
[358469934,1745184640189,-7946.43659995,0.0002,2]
[358469935,1745184640204,-4365.33479156,0.0002,2]
[358469936,1745184640218,-6874.55901428,0.0002,2]
[358469937,1745184640232,-374.92276963,0.0002,2]
[358469993,1745184642671,-319.98,0.0002,2]
[358469994,1745184642751,-105.09256361,0.0002,2]
[358469995,1745184642785,-23902.04858042,0.0002,2]
[358470020,1745184644552,-12265.62736249,0.0002,2]
[358470023,1745184645554,-467.19,0.000199,2]
[358470024,1745184645612,-613.2,0.000199,2]
[358470025,1745184645623,-1270.760705,0.000199,2]
[358470026,1745184645725,-378.940185,0.000199,2]
[358470027,1745184645784,-6165.7501985,0.000199,2]
[358470028,1745184645793,-20730.77667663,0.0002,2]
[358470029,1745184645842,-634.40000001,0.0002,2]
[358470050,1745184668385,-300.0,0.000199,2]
[358470060,1745184709113,-76.41068908,0.000199,2]
[358470061,1745184709135,-111.35402136,0.000199,2]
[358470065,1745184733915,-354.37662494,0.000199,2]
[358470066,1745184744567,-245.9215727,0.000199,2]
[358470070,1745184754469,-163.08840372,0.000199,2]
[358470072,1745184765825,-30.89031005,0.000199,2]
[358470073,1745184765851,-128.03968995,0.000199,2]
[358470075,1745184781625,-45.59303898,0.000199,2]
[358470076,1745184781649,-104.40696102,0.000199,2]
[358470077,1745184785715,-289.49480882,0.00019899,2]
[358470078,1745184786219,204.80064331,0.000279,7]
[358470080,1745184792956,-10.50519118,0.00019899,2]
[358470081,1745184792980,-289.49480882,0.000199,2]
[358470084,1745184815177,-302.6922764,0.000199,2]
[358470085,1745184815203,-567.3607236,0.000199,2]
[358470086,1745184820886,-250.0,0.000199,2]
[358470087,1745184860782,-172.8770813,0.000199,2]
[358470088,1745184862295,-152.0,0.000199,2]
[358470089,1745184871787,-250.94045938,0.000199,2]
[358470090,1745184871809,-1527.13595615,0.000199,2]
[358470091,1745184892929,-256.63036904,0.000199,2]
[358470092,1745184894435,-1896.82025604,0.000199,2]
[358470095,1745184944691,204.80064331,0.000279,7]
[358470096,1745184952846,150.0,0.00029671,7]
[358470105,1745185106196,204.80064331,0.000279,7]
[358470106,1745185111287,1145.518,0.000196,2]
[358470110,1745185238481,-200.0,0.00019899,2]
[358470111,1745185238509,-182.36325527,0.000199,2]
[358470112,1745185238537,-435.63674473,0.000199,2]
[358470123,1745185557868,151.75157,0.000199,23]
[358470129,1745185630118,355.25021123,0.000197,2]
[358470130,1745185639091,-744.09155692,0.000198,2]
[358470131,1745185686126,71842.7501131,0.000248,3]
[358470132,1745185731958,30000.2793254,0.00032,60]
[358470133,1745185743083,-2516.11531903,0.000198,2]
[358470136,1745185743136,-2516.11531903,0.000198,2]
[358470138,1745185743185,-2140.74789508,0.000198,2]
[358470140,1745185758114,-311.33105963,0.000198,2]
[358470141,1745185758136,-1000.0,0.00019899,2]
[358470142,1745185758158,-3195.83060986,0.000199,2]
[358470143,1745185773103,-15528.01768,0.000199,2]
[358470148,1745185831637,-250.0,0.0001988,2]
[358470149,1745185831647,-356.97,0.000199,2]
[358470150,1745185831693,-417.53020642,0.000199,2]
[358470151,1745185831805,-648.65481535,0.000199,2]
[358470152,1745185831816,-36348.03709277,0.000199,2]
[358470153,1745185831826,-2935.56584244,0.000199,2]
[358470154,1745185831836,-177.96834274,0.000199,2]
[358470155,1745185831845,-1503.51839003,0.000199,2]
[358470156,1745185831855,-5925.8959694,0.000199,2]
[358470157,1745185831864,-593.70493029,0.00019959,2]
[358470158,1745185831874,-995.0,0.00019973,2]
[358470159,1745185831884,-410.33492546,0.00019973,2]
[358470160,1745185831894,-500.0,0.00019973,2]
[358470161,1745185831903,-500.0,0.00019973,2]
[358470162,1745185831913,-500.0,0.00019973,2]
[358470163,1745185831923,-505.39972622,0.00019973,2]
[358470164,1745185831932,-500.0,0.00019973,2]
[358470165,1745185831941,-150.98,0.0001999,2]
[358470166,1745185831951,-150.98,0.0001999,2]
[358470167,1745185831960,-500.0,0.00019999,2]
[358470168,1745185831970,-15390.76661115,0.0002,2]
[358470170,1745185831982,-2776.80152288,0.0002,2]
[358470596,1745185838100,-7045.87391368,0.0002,2]
[358470597,1745185838121,-202709.60786472,0.0002,2]
[358470598,1745185838133,-438550.45438497,0.0002,2]
[358470800,1745185840061,-6852.95550945,0.0002,2]
[358470802,1745185840073,-4939.780016,0.0002,2]
[358470804,1745185840083,-3070.5981233,0.0002,2]
[358470807,1745185840095,-1124.04100611,0.0002,2]
[358470892,1745185841731,-281269.7294204,0.0002,2]
[358470893,1745185841743,-394.25227376,0.0002,2]
[358470894,1745185841759,-548.00952576,0.0002,2]
[358470905,1745185845880,-378.79520001,0.0002,2]
[358470906,1745185845994,-1236.835,0.0002,2]
[358470964,1745186095030,3233.87602971,0.00019701,2]
[358470965,1745186095052,504.74870329,0.00019701,2]
[358470966,1745186119748,162.92,0.00027425,30]
[358470967,1745186143444,450.0,0.00017,2]
[358470968,1745186144515,500.0,0.00019,2]
[358470975,1745186311703,916.415,0.000196,2]
[358470983,1745186487219,299.99,0.00024174,7]
[358470989,1745186727035,406.366032,0.00019701,2]
[358470995,1745186833128,-200.25696919,0.000198,2]
[358470996,1745186833153,-500.0,0.00019899,2]
[358470997,1745186833176,-300.0,0.00019899,2]
[358470998,1745186833198,-173.63272893,0.000199,2]
[358470999,1745186833218,-156.73245421,0.000199,2]
[358471000,1745186833241,-168.25741301,0.000199,2]
[358471001,1745186833264,-1082.27870112,0.000199,2]
[358471007,1745186959082,-1868.71270331,0.000199,2]
[358471008,1745186959106,-166.337717,0.000199,2]
[358471009,1745186959127,-177.40018702,0.000199,2]
[358471010,1745186959149,-177.96834274,0.000199,2]
[358471011,1745186959170,-250.0,0.00019936,2]
[358471012,1745186959193,-300.0,0.00019972,2]
[358471013,1745186959214,-3697.27670575,0.0001999,2]
[358471014,1745186959235,-151.81,0.0001999,2]
[358471015,1745186959257,-500.0,0.00019999,2]
[358471016,1745186959278,-3688.61419334,0.00019999,2]
[358471017,1745186959302,-7426.93479084,0.0002,2]
[358471018,1745186970193,1099.83212439,0.00019999,5]
[358471021,1745187002476,2000.0,0.0002,4]
[358471022,1745187007014,200.50097329,0.000279,7]
[358471023,1745187007335,200.50097328,0.000279,7]
[358471024,1745187019940,299.99,0.00024174,7]
[358471028,1745187031867,-228.0,0.00019989,2]
[358471029,1745187031876,-3722.82748893,0.0001999,2]
[358471030,1745187031886,-151.11,0.0001999,2]
[358471031,1745187031895,-151.11,0.0001999,2]
[358471032,1745187031904,-151.11,0.0001999,2]
[358471033,1745187031914,-786.0541501,0.0002,2]
[358471034,1745187031926,-510.674481,0.0002,2]
[358471035,1745187031938,-2110.41165215,0.0002,2]
[358471036,1745187031950,-362.5,0.0002,2]
[358471037,1745187032038,-398740.68262564,0.0002,2]
[358471038,1745187032153,-624.46481583,0.0002,2]
[358471039,1745187032212,-858.5577,0.0002,2]
[358471040,1745187032223,-7557.6234285,0.0002,2]
[358471041,1745187032234,-10287.47327553,0.0002,2]
[358471080,1745187038273,-590481.45198434,0.0002,2]
[358471081,1745187038283,-1490960.87173107,0.0002,2]
[358471082,1745187038293,-3950.0,0.0002,2]
[358471083,1745187038303,-1249.89468793,0.0002,2]
[358471084,1745187038314,-11825.12069645,0.0002,2]
[358471085,1745187038324,-1008.49343034,0.0002,2]
[358471086,1745187038333,-1754.28152604,0.0002,2]
[358471087,1745187038343,-250.0,0.000202,2]
[358471088,1745187038352,-150.0,0.000202,2]
[358471089,1745187038361,-355.25021123,0.000204,2]
[358471090,1745187038370,-502.01556919,0.00020565,2]
[358471091,1745187038379,-348.69777706,0.00020565,2]
[358471092,1745187038388,-500.0,0.00020565,2]
[358471093,1745187038397,-250.0,0.0002057,2]
[358471094,1745187038406,-150.0,0.0002057,2]
[358471095,1745187038415,-602.72879698,0.00020686,2]
[358471096,1745187038425,-500.0,0.00020686,2]
[358471097,1745187038434,-387.07733133,0.00020686,2]
[358471098,1745187038443,-193.11,0.0002088,2]
[358471099,1745187038452,-1157.22,0.00020887,2]
[358471100,1745187038461,-550.0,0.00021,2]
[358471101,1745187038470,-250.0,0.00022,2]
[358471102,1745187038479,-150.0,0.00022,2]
[358471103,1745187038488,-352.28,0.00022277,2]
[358471104,1745187038498,-158.93,0.00022805,2]
[358471105,1745187038507,-309.53,0.00022805,2]
[358471106,1745187038516,-181.88,0.00022926,2]
[358471107,1745187038525,-406.42,0.00023,2]
[358471108,1745187038534,-600.0,0.00023,2]
[358471109,1745187038543,-1157.22,0.00023151,2]
[358471110,1745187038552,-471.82,0.00023465,2]
[358471112,1745187038561,-1000.0,0.000236,2]
[358471114,1745187038570,-1836.91,0.0002367,2]
[358471115,1745187038580,-421.38,0.00023836,2]
[358471116,1745187038589,-16371.07,0.00023878,2]
[358471117,1745187038599,-346.18,0.00024174,2]
[358471118,1745187038610,-999.99,0.00024174,2]
[358471120,1745187038619,-150.99,0.00024174,2]
[358471122,1745187038628,-9999.99,0.00024174,2]
[358471124,1745187038645,-6101.56,0.00024174,2]
[358471127,1745187038656,-2950.99140442,0.00024289,2]
[358471129,1745187038666,-155.81,0.00024511,2]
[358471131,1745187038675,-155.8,0.00024653,2]
[358471133,1745187038686,-151.11,0.0002479,2]
[358471135,1745187038696,-22207.27,0.00024798,2]
[358471137,1745187038705,-343336.132821,0.000248,2]
[358471138,1745187038714,-250.0,0.00024966,2]
[358471141,1745187038724,-200.11454983,0.00025,2]
[358471143,1745187038733,-1605.13543145,0.00025,2]
[358471145,1745187038743,-256.63036904,0.00025,2]
[358471147,1745187038753,-267.25891702,0.00025,2]
[358471149,1745187038763,-200.0,0.00025,2]
[358471151,1745187038773,-150.0,0.00025141,2]
[358471152,1745187038783,-1157.22,0.00025414,2]
[358471153,1745187038793,-787.48328094,0.00026044,2]
[358471154,1745187038802,-1000.0,0.00026165,2]
[358471155,1745187038811,-1811.35997587,0.000264,2]
[358471156,1745187038820,-1000.0,0.0002655,2]
[358471157,1745187038830,-250.0,0.00027,2]
[358471158,1745187038839,-255.147,0.0002716,2]
[358471159,1745187038848,-155.88,0.00027397,2]
[358471160,1745187038858,-193.72534286,0.000275,2]
[358471161,1745187038867,-1157.22,0.00027678,2]
[358471162,1745187038876,-250.0,0.0002786,2]
[358471164,1745187038885,-276.84,0.00028,2]
[358471166,1745187038894,-183.65,0.00028283,2]
[358471167,1745187038903,-155.73,0.00028296,2]
[358471168,1745187038912,-305.84,0.00028511,2]
[358471169,1745187038922,-2950.99140442,0.00028678,2]
[358471171,1745187038931,-2037.79,0.00029009,2]
[358471173,1745187038940,-747.41,0.00029009,2]
[358471175,1745187038950,-9856.65,0.00029009,2]
[358471177,1745187038959,-1000.0,0.00029071,2]
[358471180,1745187038970,-200.0,0.00029071,2]
[358471182,1745187038980,-155.88,0.00029224,2]
[358471184,1745187038989,-1467.34,0.00029264,2]
[358471186,1745187038999,-1000.0,0.000295,2]
[358471188,1745187039009,-200.0,0.00029593,2]
[358471190,1745187039018,-1157.22,0.00029942,2]
[358471192,1745187039028,-155.81,0.00030638,2]
[358471194,1745187039037,-155.88,0.0003105,2]